[Event "Early-Titled-Tuesday-Blitz-October-24-2023"]
[Site "Chess.com"]
[Date "2023.10.24"]
[Round "5"]
[White "rachidhuilda"]
[Black "RNG2200"]
[Result "1-0"]
[WhiteElo "2372"]
[BlackElo "2156"]
[TimeControl "180+1"]
[EndTime "8:54:20 PDT"]
[Termination "rachidhuilda won on time"]

1. d4 {[%clk 0:02:59.3]} 1... d5 {[%clk 0:02:59.3]} 2. Nf3 {[%clk 0:02:58.9]}
2... c6 {[%clk 0:02:59.6]} 3. c4 {[%clk 0:02:57.7]} 3... e6 {[%clk 0:02:59.3]}
4. Nbd2 {[%clk 0:02:55.8]} 4... f5 {[%clk 0:02:59.7]} 5. g3 {[%clk 0:02:55.2]}
5... Nf6 {[%clk 0:03:00]} 6. Bg2 {[%clk 0:02:55.8]} 6... Bd6 {[%clk 0:02:59.6]}
7. b3 {[%clk 0:02:56.2]} 7... O-O {[%clk 0:02:58.6]} 8. Bb2 {[%clk 0:02:56.4]}
8... Bd7 {[%clk 0:02:58.9]} 9. Ne5 {[%clk 0:02:55.6]} 9... Be8 {[%clk
0:02:59.2]} 10. f4 {[%clk 0:02:54.1]} 10... Nbd7 {[%clk 0:02:58.5]} 11. Ndf3
{[%clk 0:02:53.6]} 11... Bh5 {[%clk 0:02:53.8]} 12. O-O {[%clk 0:02:45.3]} 12...
Qe7 {[%clk 0:02:44.5]} 13. Qd3 {[%clk 0:02:33.8]} 13... Ne4 {[%clk 0:02:44.4]}
14. Nxd7 {[%clk 0:02:26.4]} 14... Qxd7 {[%clk 0:02:44]} 15. Ne5 {[%clk
0:02:26.5]} 15... Qe7 {[%clk 0:02:39.6]} 16. Bf3 {[%clk 0:02:14.8]} 16... Bf7
{[%clk 0:02:08.8]} 17. Rac1 {[%clk 0:02:11.2]} 17... g5 {[%clk 0:02:08.5]} 18.
cxd5 {[%clk 0:01:59]} 18... exd5 {[%clk 0:01:53.2]} 19. e3 {[%clk 0:01:52.6]}
19... gxf4 {[%clk 0:01:40.9]} 20. exf4 {[%clk 0:01:46.2]} 20... Bg6 {[%clk
0:01:23.5]} 21. Bg2 {[%clk 0:01:41.9]} 21... Rf6 {[%clk 0:01:18.9]} 22. Nf3
{[%clk 0:01:27.4]} 22... Raf8 {[%clk 0:01:06.2]} 23. Rce1 {[%clk 0:01:17.1]}
23... Qg7 {[%clk 0:00:59.4]} 24. Ne5 {[%clk 0:01:13.7]} 24... Bh5 {[%clk
0:00:53.4]} 25. Bf3 {[%clk 0:01:06.4]} 25... Bxf3 {[%clk 0:00:53.4]} 26. Rxf3
{[%clk 0:01:05.6]} 26... Rh6 {[%clk 0:00:47.4]} 27. Re2 {[%clk 0:01:03.4]} 27...
Rh3 {[%clk 0:00:46.7]} 28. Kg2 {[%clk 0:00:59.7]} 28... Qh6 {[%clk 0:00:44]} 29.
Kg1 {[%clk 0:00:50.3]} 29... Qh5 {[%clk 0:00:32.6]} 30. Rg2 {[%clk 0:00:44.8]}
30... Kh8 {[%clk 0:00:08.3]} 31. Rf1 {[%clk 0:00:40.5]} 31... Rg8 {[%clk
0:00:03.3]} 32. Qf3 {[%clk 0:00:38.7]} 1-0

[Event "Early-Titled-Tuesday-Blitz-October-24-2023"]
[Site "Chess.com"]
[Date "2023.10.24"]
[Round "5"]
[White "DKmirl"]
[Black "Barmen_EV"]
[Result "0-1"]
[WhiteElo "2290"]
[BlackElo "2498"]
[TimeControl "180+1"]
[EndTime "8:54:21 PDT"]
[Termination "Barmen_EV won on time"]

1. d4 {[%clk 0:02:52.6]} 1... Nf6 {[%clk 0:03:00.2]} 2. Nf3 {[%clk 0:02:52.3]}
2... d5 {[%clk 0:02:59.6]} 3. g3 {[%clk 0:02:52.8]} 3... e6 {[%clk 0:02:58.7]}
4. Bg2 {[%clk 0:02:53.3]} 4... Bb4+ {[%clk 0:02:49.9]} 5. Bd2 {[%clk 0:02:41.6]}
5... Be7 {[%clk 0:02:49.9]} 6. O-O {[%clk 0:02:42.2]} 6... O-O {[%clk
0:02:50.1]} 7. c4 {[%clk 0:02:37.3]} 7... dxc4 {[%clk 0:02:49.8]} 8. Bc3 {[%clk
0:02:28.6]} 8... a6 {[%clk 0:02:44]} 9. Ne5 {[%clk 0:02:27.5]} 9... Nbd7 {[%clk
0:02:31.4]} 10. Nxc4 {[%clk 0:02:26.3]} 10... Rb8 {[%clk 0:02:26.9]} 11. Nbd2
{[%clk 0:02:17.6]} 11... c5 {[%clk 0:02:25.1]} 12. dxc5 {[%clk 0:02:14.8]} 12...
Nxc5 {[%clk 0:02:24.9]} 13. Be5 {[%clk 0:02:04.4]} 13... Ra8 {[%clk 0:02:21.3]}
14. Nb3 {[%clk 0:02:00.9]} 14... Nd5 {[%clk 0:02:10.3]} 15. Bd4 {[%clk
0:01:16.6]} 15... Nxb3 {[%clk 0:02:02.4]} 16. axb3 {[%clk 0:01:15.7]} 16... b5
{[%clk 0:01:36.6]} 17. Ne3 {[%clk 0:00:46.8]} 17... Bb7 {[%clk 0:01:33.7]} 18.
Rc1 {[%clk 0:00:19.9]} 18... Nxe3 {[%clk 0:01:33.1]} 19. Bxe3 {[%clk 0:00:18.7]}
19... Bxg2 {[%clk 0:01:32.9]} 20. Qxd8 {[%clk 0:00:17.6]} 20... Rfxd8 {[%clk
0:01:33.8]} 21. Kxg2 {[%clk 0:00:18.1]} 21... Rac8 {[%clk 0:01:33.9]} 22. Rxc8
{[%clk 0:00:17.3]} 22... Rxc8 {[%clk 0:01:34.1]} 23. Ra1 {[%clk 0:00:18]} 23...
Rc6 {[%clk 0:01:33.3]} 24. Rd1 {[%clk 0:00:14.8]} 24... h6 {[%clk 0:01:28]} 25.
Rd7 {[%clk 0:00:13.9]} 25... Bf6 {[%clk 0:01:28.1]} 26. Bd4 {[%clk 0:00:10.2]}
26... Bxd4 {[%clk 0:01:26.8]} 27. Rxd4 {[%clk 0:00:10.3]} 27... Rc2 {[%clk
0:01:27.4]} 28. Rd6 {[%clk 0:00:10.4]} 28... Rxe2 {[%clk 0:01:25.5]} 29. Rxa6
{[%clk 0:00:10.4]} 29... Rxb2 {[%clk 0:01:26.2]} 30. Ra8+ {[%clk 0:00:08.7]}
30... Kh7 {[%clk 0:01:26.5]} 31. Ra7 {[%clk 0:00:08.1]} 31... Kg6 {[%clk
0:01:26.4]} 32. Rb7 {[%clk 0:00:07.8]} 32... Rxb3 {[%clk 0:01:26.8]} 33. h4
{[%clk 0:00:07.2]} 33... h5 {[%clk 0:01:26.7]} 34. Rb6 {[%clk 0:00:07.1]} 34...
Kf6 {[%clk 0:01:27.1]} 35. Rb8 {[%clk 0:00:04.5]} 35... g6 {[%clk 0:01:27.6]}
36. Rb6 {[%clk 0:00:04.2]} 36... b4 {[%clk 0:01:27.5]} 37. Rb5 {[%clk
0:00:04.3]} 37... Rb2 {[%clk 0:01:27.5]} 38. Kg1 {[%clk 0:00:03.7]} 38... b3
{[%clk 0:01:25.7]} 39. Rb4 {[%clk 0:00:02.6]} 39... Ke5 {[%clk 0:01:24.8]} 40.
Kg2 {[%clk 0:00:02.9]} 40... Rb1 {[%clk 0:01:21.7]} 41. Rb5+ {[%clk 0:00:01.3]}
41... Kd4 {[%clk 0:01:21.7]} 42. Rb7 {[%clk 0:00:02.2]} 42... Kc3 {[%clk
0:01:20]} 43. Rc7+ {[%clk 0:00:01.5]} 43... Kb2 {[%clk 0:01:19.2]} 44. Rxf7
{[%clk 0:00:02]} 44... Re1 {[%clk 0:01:19.7]} 45. Rb7 {[%clk 0:00:01.2]} 45...
Kc2 {[%clk 0:01:19.7]} 46. Rc7+ {[%clk 0:00:01.7]} 46... Kb1 {[%clk 0:01:20.2]}
0-1

[Event "Early-Titled-Tuesday-Blitz-October-24-2023"]
[Site "Chess.com"]
[Date "2023.10.24"]
[Round "5"]
[White "subham777"]
[Black "Dewarfd"]
[Result "1-0"]
[WhiteElo "2523"]
[BlackElo "2172"]
[TimeControl "180+1"]
[EndTime "8:54:22 PDT"]
[Termination "subham777 won by resignation"]

1. e4 {[%clk 0:03:00.9]} 1... e5 {[%clk 0:02:58.5]} 2. Nf3 {[%clk 0:02:58]} 2...
Nc6 {[%clk 0:02:56]} 3. Bc4 {[%clk 0:02:54.6]} 3... Nf6 {[%clk 0:02:55.2]} 4. d3
{[%clk 0:02:54.1]} 4... Be7 {[%clk 0:02:54.3]} 5. c3 {[%clk 0:02:54.2]} 5... O-O
{[%clk 0:02:53.7]} 6. Nbd2 {[%clk 0:02:54.5]} 6... d6 {[%clk 0:02:53.7]} 7. Nf1
{[%clk 0:02:54.5]} 7... Na5 {[%clk 0:02:51.4]} 8. Bb5 {[%clk 0:02:53]} 8... a6
{[%clk 0:02:50]} 9. Ba4 {[%clk 0:02:53]} 9... b5 {[%clk 0:02:50.2]} 10. Bc2
{[%clk 0:02:53.5]} 10... c5 {[%clk 0:02:50.3]} 11. Ng3 {[%clk 0:02:53.2]} 11...
Nc6 {[%clk 0:02:49.9]} 12. O-O {[%clk 0:02:49.7]} 12... d5 {[%clk 0:02:44.6]}
13. exd5 {[%clk 0:02:48.8]} 13... Nxd5 {[%clk 0:02:44.5]} 14. Re1 {[%clk
0:02:48.7]} 14... Bf6 {[%clk 0:02:44.2]} 15. a4 {[%clk 0:02:47.4]} 15... Bg4
{[%clk 0:02:42]} 16. h3 {[%clk 0:02:41.7]} 16... Be6 {[%clk 0:02:30.6]} 17. Ne4
{[%clk 0:02:06.7]} 17... Be7 {[%clk 0:02:14.6]} 18. Ng3 {[%clk 0:01:59.8]} 18...
Qc7 {[%clk 0:02:06.3]} 19. Qe2 {[%clk 0:01:49.1]} 19... f6 {[%clk 0:01:51.8]}
20. Bb3 {[%clk 0:01:35.9]} 20... Qd7 {[%clk 0:01:14.2]} 21. Qe4 {[%clk
0:01:29.4]} 21... Rad8 {[%clk 0:01:05]} 22. axb5 {[%clk 0:01:24.3]} 22... axb5
{[%clk 0:01:04.8]} 23. Ra6 {[%clk 0:01:18.6]} 23... Qb7 {[%clk 0:00:40.9]} 24.
Ra1 {[%clk 0:01:12.5]} 24... Nf4 {[%clk 0:00:34.8]} 25. Bxe6+ {[%clk 0:01:07.2]}
25... Nxe6 {[%clk 0:00:35.7]} 26. Nf5 {[%clk 0:01:06.9]} 26... Qd7 {[%clk
0:00:31.6]} 27. Ra6 {[%clk 0:01:00.7]} 27... Nb8 {[%clk 0:00:30.5]} 28. Rxe6
{[%clk 0:00:48.9]} 28... Qxe6 {[%clk 0:00:25.1]} 29. Qg4 {[%clk 0:00:49.5]}
29... Rf7 {[%clk 0:00:12.6]} 30. Nh6+ {[%clk 0:00:46.4]} 30... Kh8 {[%clk
0:00:12.4]} 31. Qxe6 {[%clk 0:00:46.2]} 1-0

[Event "Early-Titled-Tuesday-Blitz-October-24-2023"]
[Site "Chess.com"]
[Date "2023.10.24"]
[Round "5"]
[White "Carow-Kann"]
[Black "ContrVersia"]
[Result "0-1"]
[WhiteElo "2637"]
[BlackElo "2909"]
[TimeControl "180+1"]
[EndTime "8:54:23 PDT"]
[Termination "ContrVersia won by resignation"]

1. d4 {[%clk 0:03:00.9]} 1... Nf6 {[%clk 0:02:59.4]} 2. c4 {[%clk 0:03:01]} 2...
e6 {[%clk 0:02:59.8]} 3. Nc3 {[%clk 0:03:00.4]} 3... Bb4 {[%clk 0:02:59.4]} 4.
Qc2 {[%clk 0:03:00.6]} 4... Nc6 {[%clk 0:02:59.2]} 5. Nf3 {[%clk 0:03:00.3]}
5... d6 {[%clk 0:02:59.7]} 6. Bg5 {[%clk 0:02:59.1]} 6... h6 {[%clk 0:02:59.8]}
7. Bd2 {[%clk 0:02:58.9]} 7... O-O {[%clk 0:02:57.2]} 8. a3 {[%clk 0:02:45.7]}
8... Bxc3 {[%clk 0:02:56.8]} 9. Bxc3 {[%clk 0:02:46.6]} 9... Qe7 {[%clk
0:02:56.2]} 10. e3 {[%clk 0:02:38]} 10... a5 {[%clk 0:02:52.7]} 11. b3 {[%clk
0:02:32.6]} 11... e5 {[%clk 0:02:52.6]} 12. dxe5 {[%clk 0:02:28.9]} 12... dxe5
{[%clk 0:02:52.6]} 13. Be2 {[%clk 0:02:24.8]} 13... Bg4 {[%clk 0:02:51.3]} 14.
h3 {[%clk 0:02:11.4]} 14... Bh5 {[%clk 0:02:49.7]} 15. O-O {[%clk 0:02:07.4]}
15... Bg6 {[%clk 0:02:46.1]} 16. Qb2 {[%clk 0:02:06.6]} 16... Rfe8 {[%clk
0:02:46.6]} 17. Rfd1 {[%clk 0:02:01.6]} 17... Ne4 {[%clk 0:02:46.4]} 18. Be1
{[%clk 0:01:59.3]} 18... Nc5 {[%clk 0:02:36.2]} 19. b4 {[%clk 0:01:50.8]} 19...
axb4 {[%clk 0:02:15.3]} 20. axb4 {[%clk 0:01:47.3]} 20... Rxa1 {[%clk
0:02:15.8]} 21. Qxa1 {[%clk 0:01:41.8]} 21... Ne4 {[%clk 0:02:05.3]} 22. c5
{[%clk 0:01:19.7]} 22... f6 {[%clk 0:01:59.9]} 23. Nh4 {[%clk 0:01:11.4]} 23...
Bf7 {[%clk 0:01:58]} 24. f3 {[%clk 0:01:06.9]} 24... Ng5 {[%clk 0:01:57.4]} 25.
Bc3 {[%clk 0:00:38.2]} 25... Qe6 {[%clk 0:01:48.5]} 26. b5 {[%clk 0:00:32.4]}
26... Ne7 {[%clk 0:01:48.6]} 27. Qb2 {[%clk 0:00:23.6]} 27... Ra8 {[%clk
0:01:36.9]} 28. Ra1 {[%clk 0:00:20.9]} 28... Rxa1+ {[%clk 0:01:32.4]} 29. Qxa1
{[%clk 0:00:21.8]} 29... Qb3 {[%clk 0:01:31.7]} 30. Qb2 {[%clk 0:00:12.6]} 30...
Qa4 {[%clk 0:01:24.6]} 31. e4 {[%clk 0:00:07.3]} 31... Ne6 {[%clk 0:01:21.9]}
32. Qb4 {[%clk 0:00:04.3]} 32... Qc2 {[%clk 0:01:22]} 33. Qb2 {[%clk 0:00:04.3]}
33... Qxb2 {[%clk 0:01:21.9]} 34. Bxb2 {[%clk 0:00:04.7]} 34... Nxc5 {[%clk
0:01:22.8]} 35. Ba3 {[%clk 0:00:04.1]} 35... b6 {[%clk 0:01:23]} 36. Kf2 {[%clk
0:00:04.2]} 36... g5 {[%clk 0:01:20.4]} 37. Nf5 {[%clk 0:00:04.1]} 37... Nxf5
{[%clk 0:01:20.8]} 38. exf5 {[%clk 0:00:05]} 38... Kf8 {[%clk 0:01:21.5]} 39.
Ke3 {[%clk 0:00:04.7]} 39... Ke7 {[%clk 0:01:22]} 40. g3 {[%clk 0:00:04.8]}
40... Kd6 {[%clk 0:01:21.5]} 41. Bf1 {[%clk 0:00:05.2]} 41... Bb3 {[%clk
0:01:11.8]} 42. Be2 {[%clk 0:00:05.3]} 42... Kd5 {[%clk 0:01:09.8]} 43. g4
{[%clk 0:00:04.9]} 43... Bc4 {[%clk 0:01:07.3]} 44. Bxc4+ {[%clk 0:00:05.2]}
44... Kxc4 {[%clk 0:01:07.7]} 45. Bb2 {[%clk 0:00:06.1]} 45... Kxb5 {[%clk
0:01:06.3]} 0-1

[Event "Early-Titled-Tuesday-Blitz-October-24-2023"]
[Site "Chess.com"]
[Date "2023.10.24"]
[Round "5"]
[White "MagnusCarlsen"]
[Black "seopie"]
[Result "1-0"]
[WhiteElo "3270"]
[BlackElo "2912"]
[TimeControl "180+1"]
[EndTime "8:54:25 PDT"]
[Termination "MagnusCarlsen won by resignation"]

1. h4 {[%clk 0:03:00]} 1... h5 {[%clk 0:02:55.5]} 2. e4 {[%clk 0:02:58]} 2... e5
{[%clk 0:02:49.3]} 3. Nf3 {[%clk 0:02:57.7]} 3... Nc6 {[%clk 0:02:49.6]} 4. Bc4
{[%clk 0:02:49.5]} 4... Be7 {[%clk 0:02:28.3]} 5. d4 {[%clk 0:02:48.2]} 5...
exd4 {[%clk 0:02:28.3]} 6. c3 {[%clk 0:02:42.2]} 6... d3 {[%clk 0:02:25.7]} 7.
Qb3 {[%clk 0:02:37.7]} 7... Nh6 {[%clk 0:01:58.9]} 8. Bxh6 {[%clk 0:02:36]} 8...
Rxh6 {[%clk 0:01:58.8]} 9. Bxf7+ {[%clk 0:02:36.6]} 9... Kf8 {[%clk 0:01:59]}
10. Nbd2 {[%clk 0:02:24.9]} 10... d6 {[%clk 0:01:57.7]} 11. Bd5 {[%clk
0:02:24.6]} 11... Na5 {[%clk 0:01:55.4]} 12. Qa4 {[%clk 0:02:17.4]} 12... c6
{[%clk 0:01:55.3]} 13. Bb3 {[%clk 0:02:18]} 13... Nxb3 {[%clk 0:01:46.1]} 14.
axb3 {[%clk 0:02:17.4]} 14... d5 {[%clk 0:01:38.2]} 15. Qd4 {[%clk 0:02:06.7]}
15... dxe4 {[%clk 0:01:36.7]} 16. Qxd8+ {[%clk 0:02:02]} 16... Bxd8 {[%clk
0:01:37.6]} 17. Nxe4 {[%clk 0:02:02.4]} 17... Bf5 {[%clk 0:01:18]} 18. Ng3
{[%clk 0:02:02.2]} 18... Bg4 {[%clk 0:01:16.3]} 19. O-O-O {[%clk 0:02:01.5]}
19... Bxf3 {[%clk 0:01:15]} 20. gxf3 {[%clk 0:02:02.4]} 20... Bb6 {[%clk
0:01:12.3]} 21. Rxd3 {[%clk 0:02:02.1]} 21... Bxf2 {[%clk 0:01:12]} 22. Ne4
{[%clk 0:02:02.8]} 22... Bb6 {[%clk 0:01:11.5]} 23. Rd7 {[%clk 0:02:03.3]} 23...
Re6 {[%clk 0:01:02.6]} 24. Rxb7 {[%clk 0:02:00.4]} 24... Rae8 {[%clk 0:00:59.4]}
25. Kc2 {[%clk 0:01:57.9]} 25... R8e7 {[%clk 0:00:56.6]} 26. Rb8+ {[%clk
0:01:58]} 26... Re8 {[%clk 0:00:56.6]} 27. Rxe8+ {[%clk 0:01:58.7]} 27... Kxe8
{[%clk 0:00:57.4]} 28. b4 {[%clk 0:01:59.5]} 28... Re5 {[%clk 0:00:54.9]} 29. c4
{[%clk 0:01:59.4]} 29... a5 {[%clk 0:00:46]} 30. c5 {[%clk 0:01:58.9]} 30... Bd8
{[%clk 0:00:43.2]} 31. bxa5 {[%clk 0:01:58.4]} 31... Bxa5 {[%clk 0:00:43.4]} 32.
Ra1 {[%clk 0:01:51.2]} 32... Bb4 {[%clk 0:00:39.2]} 33. Kd3 {[%clk 0:01:47.4]}
33... Bxc5 {[%clk 0:00:37.1]} 34. Ra5 {[%clk 0:01:47.3]} 34... Rd5+ {[%clk
0:00:34]} 35. Kc4 {[%clk 0:01:45.1]} 35... Be7 {[%clk 0:00:34.3]} 36. Ra6 {[%clk
0:01:37.7]} 36... Bxh4 {[%clk 0:00:31.9]} 37. Rxc6 {[%clk 0:01:37.8]} 37... Re5
{[%clk 0:00:29]} 38. b4 {[%clk 0:01:37.2]} 38... Bd8 {[%clk 0:00:26.7]} 39. b5
{[%clk 0:01:37.4]} 39... Kd7 {[%clk 0:00:14.6]} 40. Rd6+ {[%clk 0:01:30.1]}
40... Kc8 {[%clk 0:00:13.6]} 41. Rc6+ {[%clk 0:01:24]} 41... Kd7 {[%clk
0:00:13.5]} 42. Nc5+ {[%clk 0:01:24.3]} 42... Ke8 {[%clk 0:00:12.4]} 43. b6
{[%clk 0:01:24.3]} 43... Bxb6 {[%clk 0:00:12.6]} 44. Rxb6 {[%clk 0:01:25.2]}
44... Rf5 {[%clk 0:00:12]} 45. Rb3 {[%clk 0:01:24.5]} 45... g5 {[%clk
0:00:12.4]} 46. Ne6 {[%clk 0:01:21.6]} 46... Ke7 {[%clk 0:00:11]} 47. Nd4 {[%clk
0:01:21.9]} 47... Rf4 {[%clk 0:00:11.2]} 48. Kd5 {[%clk 0:01:22.3]} 48... g4
{[%clk 0:00:11.5]} 49. Ke5 {[%clk 0:01:22.8]} 49... Rf8 {[%clk 0:00:06.1]} 50.
Rb7+ {[%clk 0:01:21.6]} 50... Ke8 {[%clk 0:00:05.9]} 51. Ke6 {[%clk 0:01:21.6]}
1-0

[Event "Early-Titled-Tuesday-Blitz-October-24-2023"]
[Site "Chess.com"]
[Date "2023.10.24"]
[Round "5"]
[White "HATilay"]
[Black "wild3000"]
[Result "0-1"]
[WhiteElo "2542"]
[BlackElo "2374"]
[TimeControl "180+1"]
[EndTime "8:54:25 PDT"]
[Termination "wild3000 won by resignation"]

1. d4 {[%clk 0:02:57.1]} 1... Nf6 {[%clk 0:02:58.2]} 2. c4 {[%clk 0:02:57.6]}
2... e6 {[%clk 0:02:58.3]} 3. Nc3 {[%clk 0:02:58.2]} 3... d5 {[%clk 0:02:56.4]}
4. cxd5 {[%clk 0:02:59.1]} 4... exd5 {[%clk 0:02:56.1]} 5. Bg5 {[%clk
0:02:59.3]} 5... Be7 {[%clk 0:02:55.9]} 6. e3 {[%clk 0:02:59.7]} 6... c6 {[%clk
0:02:55.2]} 7. Bd3 {[%clk 0:03:00]} 7... Nbd7 {[%clk 0:02:55.4]} 8. Qc2 {[%clk
0:02:59.5]} 8... h6 {[%clk 0:02:54]} 9. Bf4 {[%clk 0:02:58.7]} 9... O-O {[%clk
0:02:50.6]} 10. h3 {[%clk 0:02:58.6]} 10... Re8 {[%clk 0:02:50.5]} 11. Nf3
{[%clk 0:02:58.2]} 11... b6 {[%clk 0:02:25.8]} 12. O-O {[%clk 0:02:56.3]} 12...
Bb7 {[%clk 0:02:25.7]} 13. Bh2 {[%clk 0:02:49.7]} 13... Bf8 {[%clk 0:02:15.2]}
14. Ne5 {[%clk 0:02:40.4]} 14... Nxe5 {[%clk 0:02:10.7]} 15. dxe5 {[%clk
0:02:40.1]} 15... Nd7 {[%clk 0:02:11.2]} 16. f4 {[%clk 0:02:30.8]} 16... Nc5
{[%clk 0:02:11.2]} 17. Bh7+ {[%clk 0:02:10.5]} 17... Kh8 {[%clk 0:02:10.9]} 18.
b4 {[%clk 0:02:06]} 18... Ne6 {[%clk 0:02:01.7]} 19. a3 {[%clk 0:01:58.7]} 19...
c5 {[%clk 0:01:55.8]} 20. Rad1 {[%clk 0:01:38]} 20... cxb4 {[%clk 0:01:50.1]}
21. axb4 {[%clk 0:01:33.7]} 21... Rc8 {[%clk 0:01:48]} 22. Qd3 {[%clk
0:01:07.4]} 22... Rxc3 {[%clk 0:01:32.5]} 23. Qxc3 {[%clk 0:01:07.4]} 23... Kxh7
{[%clk 0:01:33.3]} 24. h4 {[%clk 0:00:34.3]} 24... Qxh4 {[%clk 0:01:24.9]} 25.
f5 {[%clk 0:00:34.6]} 25... Ng5 {[%clk 0:01:22.4]} 26. Rf4 {[%clk 0:00:34.1]}
26... Qh5 {[%clk 0:01:21.2]} 27. Rdf1 {[%clk 0:00:20]} 27... Rc8 {[%clk
0:01:10.5]} 28. Qd2 {[%clk 0:00:19.1]} 28... Ne4 {[%clk 0:01:06.6]} 29. Qe1
{[%clk 0:00:18.4]} 29... Rc2 {[%clk 0:01:02.6]} 30. e6 {[%clk 0:00:08.7]} 30...
Qg5 {[%clk 0:00:57.3]} 31. g4 {[%clk 0:00:08.6]} 31... fxe6 {[%clk 0:00:45.7]}
32. fxe6 {[%clk 0:00:08.6]} 32... Bd6 {[%clk 0:00:45.3]} 33. e7 {[%clk
0:00:03.1]} 33... Qxe7 {[%clk 0:00:42.8]} 0-1

[Event "Early-Titled-Tuesday-Blitz-October-24-2023"]
[Site "Chess.com"]
[Date "2023.10.24"]
[Round "5"]
[White "pedro_gines"]
[Black "Nbk90"]
[Result "1-0"]
[WhiteElo "2746"]
[BlackElo "2212"]
[TimeControl "180+1"]
[EndTime "8:54:27 PDT"]
[Termination "pedro_gines won by resignation"]

1. d4 {[%clk 0:02:55.8]} 1... Nf6 {[%clk 0:02:59.2]} 2. c4 {[%clk 0:02:55.9]}
2... e6 {[%clk 0:02:58.9]} 3. Nf3 {[%clk 0:02:55.4]} 3... Bb4+ {[%clk
0:02:57.4]} 4. Nbd2 {[%clk 0:02:55]} 4... O-O {[%clk 0:02:55.4]} 5. a3 {[%clk
0:02:53.1]} 5... Bxd2+ {[%clk 0:02:55.4]} 6. Qxd2 {[%clk 0:02:54]} 6... d6
{[%clk 0:02:55.6]} 7. e3 {[%clk 0:02:54.3]} 7... Qe7 {[%clk 0:02:55.7]} 8. Be2
{[%clk 0:02:54.3]} 8... e5 {[%clk 0:02:53]} 9. O-O {[%clk 0:02:54]} 9... Bg4
{[%clk 0:02:47.5]} 10. b4 {[%clk 0:02:50.8]} 10... Nbd7 {[%clk 0:02:39.4]} 11.
h3 {[%clk 0:02:44.4]} 11... Bh5 {[%clk 0:02:38.6]} 12. Bb2 {[%clk 0:02:43.5]}
12... e4 {[%clk 0:02:30.8]} 13. Nh2 {[%clk 0:02:41.9]} 13... Bxe2 {[%clk
0:02:30]} 14. Qxe2 {[%clk 0:02:42.8]} 14... c6 {[%clk 0:02:30.2]} 15. a4 {[%clk
0:02:42.5]} 15... d5 {[%clk 0:02:27.8]} 16. Ba3 {[%clk 0:02:37.7]} 16... Qe6
{[%clk 0:02:26.7]} 17. b5 {[%clk 0:02:37.4]} 17... Rfc8 {[%clk 0:02:24.1]} 18.
Rfc1 {[%clk 0:02:36.4]} 18... dxc4 {[%clk 0:02:16.2]} 19. Qxc4 {[%clk
0:02:33.9]} 19... Qxc4 {[%clk 0:02:13.8]} 20. Rxc4 {[%clk 0:02:34.8]} 20... Nb6
{[%clk 0:02:12.6]} 21. bxc6 {[%clk 0:02:26.1]} 21... bxc6 {[%clk 0:02:07.5]} 22.
Rc2 {[%clk 0:02:20]} 22... Nxa4 {[%clk 0:02:00.5]} 23. Be7 {[%clk 0:02:17.4]}
23... Nb6 {[%clk 0:01:54.7]} 24. Bxf6 {[%clk 0:02:11]} 24... gxf6 {[%clk
0:01:55.6]} 25. Ng4 {[%clk 0:02:11.8]} 25... Kg7 {[%clk 0:01:50.9]} 26. Ra5
{[%clk 0:02:12.4]} 26... Nd5 {[%clk 0:01:45.5]} 27. Nh2 {[%clk 0:01:56]} 27...
Rab8 {[%clk 0:01:35.2]} 28. g4 {[%clk 0:01:55.9]} 28... Rb1+ {[%clk 0:01:15.6]}
29. Kg2 {[%clk 0:01:56]} 29... Nb4 {[%clk 0:01:15.9]} 30. Rd2 {[%clk 0:01:12.4]}
30... Rc7 {[%clk 0:01:08.1]} 31. f3 {[%clk 0:01:04.6]} 31... exf3+ {[%clk
0:01:05.2]} 32. Nxf3 {[%clk 0:01:05.5]} 32... Re7 {[%clk 0:01:04.9]} 33. Nh4
{[%clk 0:01:04.9]} 33... Re6 {[%clk 0:00:59.2]} 34. Rxa7 {[%clk 0:01:02]} 34...
Nd5 {[%clk 0:00:58.9]} 35. Re2 {[%clk 0:00:59.2]} 35... Nf4+ {[%clk 0:00:54.5]}
36. Kf3 {[%clk 0:00:58.8]} 36... Nxe2 {[%clk 0:00:54]} 37. Kxe2 {[%clk
0:00:59.7]} 37... Rh1 {[%clk 0:00:49.9]} 38. Nf5+ {[%clk 0:00:56.9]} 38... Kf8
{[%clk 0:00:48]} 39. h4 {[%clk 0:00:54]} 39... Rh3 {[%clk 0:00:43.9]} 40. Kf2
{[%clk 0:00:52.4]} 40... Re4 {[%clk 0:00:35.2]} 41. Ra8+ {[%clk 0:00:50.5]}
41... Re8 {[%clk 0:00:34.7]} 42. Rxe8+ {[%clk 0:00:51.4]} 42... Kxe8 {[%clk
0:00:34.6]} 43. Kg2 {[%clk 0:00:52.3]} 43... Rxh4 {[%clk 0:00:23.9]} 44. Nxh4
{[%clk 0:00:51.7]} 44... Kd7 {[%clk 0:00:23.5]} 45. Kf3 {[%clk 0:00:49.2]} 1-0

[Event "Early-Titled-Tuesday-Blitz-October-24-2023"]
[Site "Chess.com"]
[Date "2023.10.24"]
[Round "5"]
[White "hansen"]
[Black "topin8"]
[Result "1-0"]
[WhiteElo "2931"]
[BlackElo "2455"]
[TimeControl "180+1"]
[EndTime "8:54:33 PDT"]
[Termination "hansen won on time"]

1. e4 {[%clk 0:02:39.1]} 1... e5 {[%clk 0:02:57.3]} 2. Nf3 {[%clk 0:02:36.4]}
2... Nc6 {[%clk 0:02:55.1]} 3. c3 {[%clk 0:02:22.5]} 3... Nf6 {[%clk 0:02:26.6]}
4. d4 {[%clk 0:02:18.5]} 4... Nxe4 {[%clk 0:02:24.4]} 5. Bd3 {[%clk 0:02:10.9]}
5... d5 {[%clk 0:02:16.1]} 6. dxe5 {[%clk 0:01:55.9]} 6... Nc5 {[%clk
0:00:57.1]} 7. Bb5 {[%clk 0:01:51.2]} 7... Be7 {[%clk 0:00:43.6]} 8. O-O {[%clk
0:01:34.7]} 8... O-O {[%clk 0:00:41.4]} 9. h3 {[%clk 0:01:28.3]} 9... Bf5 {[%clk
0:00:37.6]} 10. Re1 {[%clk 0:01:21.1]} 10... f6 {[%clk 0:00:19.7]} 11. Bxc6
{[%clk 0:00:57]} 11... bxc6 {[%clk 0:00:20.6]} 12. Nd4 {[%clk 0:00:57.4]} 12...
Qd7 {[%clk 0:00:21.1]} 13. e6 {[%clk 0:00:38.1]} 13... Bxe6 {[%clk 0:00:19.3]}
14. b4 {[%clk 0:00:22.8]} 14... Bxh3 {[%clk 0:00:11.3]} 15. bxc5 {[%clk
0:00:21.8]} 15... Bxc5 {[%clk 0:00:11.2]} 16. gxh3 {[%clk 0:00:18.4]} 16... Qxh3
{[%clk 0:00:12.1]} 17. Qf3 {[%clk 0:00:17.9]} 17... Qd7 {[%clk 0:00:04.8]} 18.
Bf4 {[%clk 0:00:16.4]} 18... Rfe8 {[%clk 0:00:04.7]} 19. Nd2 {[%clk 0:00:16.9]}
19... Bd6 {[%clk 0:00:03.6]} 20. Qg3 {[%clk 0:00:16.2]} 20... Kh8 {[%clk
0:00:02.1]} 21. Kg2 {[%clk 0:00:11.8]} 21... c5 {[%clk 0:00:02.5]} 22. N4f3
{[%clk 0:00:11.9]} 22... Bxf4 {[%clk 0:00:02.3]} 23. Qxf4 {[%clk 0:00:12.1]}
23... c6 {[%clk 0:00:02.7]} 24. Nb3 {[%clk 0:00:10.8]} 1-0